bitfinex-derivatives/quotes_BTCF0:USTF0_20241122
["timestamp","ask_amount","ask_price","bid_price","bid_amount"]
[1732234203327,0.05468584,98412.0,98411.0,0.3608]
[1732234203726,0.10343384,98412.0,98411.0,0.3608]
[1732234203931,0.10543384,98412.0,98411.0,0.3608]
[1732234205526,0.10343384,98412.0,98411.0,0.3638]
[1732234205921,0.10343384,98412.0,98411.0,0.3608]
[1732234206127,0.10543384,98412.0,98411.0,0.3608]
[1732234206527,0.10343384,98412.0,98411.0,0.3608]
[1732234206722,0.10543384,98412.0,98411.0,0.3608]
[1732234206923,0.10543384,98412.0,98404.0,0.18215616]
[1732234207228,0.050751,98405.0,98404.0,0.18215616]
[1732234209931,0.052751,98405.0,98404.0,0.18215616]
[1732234210724,0.053751,98405.0,98404.0,0.18215616]
[1732234210929,0.053751,98405.0,98404.0,0.54295616]
[1732234211120,0.053751,98405.0,98404.0,0.18215616]
[1732234212131,0.052751,98405.0,98404.0,0.18215616]
[1732234212333,0.144431,98405.0,98404.0,0.18215616]
[1732234214429,0.449311,98405.0,98404.0,0.18215616]
[1732234214629,0.050753,98401.0,98400.0,0.095]
[1732234214835,0.00501124,98401.0,98389.0,0.3035936]
[1732234215029,0.050754,98399.0,98389.0,0.3035936]
[1732234215237,0.05573275,98399.0,98389.0,0.3035936]
[1732234215536,0.36061275,98399.0,98389.0,0.3035936]
[1732234215738,1.86061275,98399.0,98398.0,0.2046017]
[1732234216135,1.86061275,98399.0,98381.0,0.3679]
[1732234216340,0.050763,98382.0,98381.0,0.3608]
[1732234216535,0.140443,98382.0,98381.0,0.36085739]
[1732234216841,0.140443,98382.0,98381.0,5.739e-05]
[1732234217432,0.445363,98382.0,98381.0,5.739e-05]
[1732234217633,0.78784235,98382.0,98381.0,0.00305739]
[1732234218131,0.050772,98364.0,98363.0,0.0071]
[1732234218331,0.09204,98364.0,98356.0,0.3608]
[1732234218739,0.050774,98361.0,98356.0,0.3608]
[1732234219043,0.050775,98360.0,98356.0,0.3608]
[1732234219836,0.050775,98360.0,98357.0,0.00982573]
[1732234220038,0.050775,98359.0,98358.0,0.00377861]
[1732234220333,0.050775,98359.0,98358.0,0.00982573]
[1732234222442,0.05243068,98363.0,98358.0,0.01282573]
[1732234222644,0.050775,98360.0,98359.0,0.00982573]
[1732234223840,0.05243068,98363.0,98359.0,0.00982573]
[1732234224045,0.09204,98362.0,98360.0,0.00982573]
[1732234224344,0.05243068,98363.0,98361.0,0.00957207]
[1732234224641,0.09204,98362.0,98358.0,0.004]
[1732234224838,0.09204,98362.0,98359.0,0.00974673]
[1732234225149,0.00052001,98371.0,98360.0,0.00974673]
[1732234225332,0.050765,98379.0,98369.0,0.3608]
[1732234225537,1.59204,98378.0,98370.0,0.00974673]
[1732234225738,1.59204,98378.0,98371.0,0.00974673]
[1732234225942,1.59204,98378.0,98372.0,0.00974673]
[1732234226141,0.09204,98378.0,98373.0,0.00974673]
[1732234226342,0.09204,98377.0,98374.0,0.00974673]
[1732234226546,0.09204,98377.0,98375.0,0.00974673]
[1732234226738,0.09204,98377.0,98376.0,0.00974673]
[1732234227647,0.18557744,98377.0,98376.0,0.00974673]
[1732234229240,0.18557744,98377.0,98376.0,0.20074673]
[1732234230441,0.18557744,98377.0,98376.0,0.19974673]
[1732234230742,0.18757744,98377.0,98376.0,0.19974673]
[1732234230943,0.49253744,98377.0,98376.0,0.19937184]
[1732234231346,0.85333744,98377.0,98376.0,0.19937184]
[1732234231745,0.85333744,98377.0,98376.0,0.19360406]
[1732234231746,0.85433744,98377.0,98376.0,0.19360406]
[1732234232243,0.85533744,98377.0,98376.0,0.15280451]
[1732234232550,0.55037744,98377.0,98376.0,0.15280451]
[1732234233139,0.85533744,98377.0,98376.0,0.15280451]
[1732234234252,0.85533744,98377.0,98376.0,0.12044172]
[1732234234548,0.85533744,98377.0,98376.0,0.12]
[1732234235541,0.85433744,98377.0,98376.0,0.12]
[1732234235946,2.35333744,98377.0,98376.0,0.12]
[1732234236143,2.35433744,98377.0,98376.0,0.09806158]
[1732234236749,2.35433744,98377.0,98376.0,0.0298468]
[1732234236955,2.35433744,98377.0,98356.0,0.6579]
[1732234236956,0.050776,98357.0,98356.0,0.6579]
[1732234237155,0.050776,98357.0,98356.0,0.5408]
[1732234237156,0.142856,98357.0,98356.0,0.5408]
[1732234237347,0.142856,98357.0,98356.0,0.18]
[1732234239144,0.143856,98357.0,98356.0,0.18]
[1732234239747,0.23452242,98357.0,98356.0,0.18]
[1732234240351,0.143856,98357.0,98356.0,0.18]
[1732234240757,0.18698017,98357.0,98356.0,0.18]
[1732234241745,0.18698017,98357.0,98356.0,0.12378246]
[1732234242751,0.30786873,98357.0,98356.0,0.12378246]
[1732234243362,0.18698017,98357.0,98356.0,0.12378246]
[1732234244251,0.18698017,98357.0,98356.0,0.09053631]
[1732234245265,0.18898017,98357.0,98356.0,0.09053631]
[1732234245561,0.18898017,98357.0,98356.0,0.05077803]
[1732234245956,0.20929777,98357.0,98356.0,0.05077803]
[1732234246252,1.70929777,98357.0,98356.0,0.0113625]
[1732234246454,1.86017411,98357.0,98356.0,0.0113625]
[1732234248363,1.86062976,98357.0,98356.0,0.0113625]
[1732234248865,1.86062976,98357.0,98349.0,0.0102]
[1732234249049,0.05078,98350.0,98349.0,0.2002]
[1732234249251,0.05078,98350.0,98349.0,0.19]
[1732234252666,0.17184559,98350.0,98349.0,0.19]
[1732234253265,0.05078,98350.0,98349.0,0.19]
[1732234253471,0.17185582,98350.0,98349.0,0.19]
[1732234254267,0.05078,98350.0,98349.0,0.19]
[1732234254858,0.05112102,98350.0,98349.0,0.19]
[1732234255064,0.05312102,98350.0,98349.0,0.19]
[1732234255663,0.05112102,98350.0,98349.0,0.19]
[1732234255871,0.05312102,98350.0,98349.0,0.19]
[1732234256271,0.1741705,98350.0,98349.0,0.19]
[1732234256465,0.14368102,98350.0,98349.0,0.19]
[1732234257367,0.26474831,98350.0,98349.0,0.19]
[1732234257561,0.14268102,98350.0,98349.0,0.19]
[1732234257871,0.14368102,98350.0,98349.0,0.19]
[1732234258570,0.26476759,98350.0,98349.0,0.19]
[1732234259164,0.26276759,98350.0,98349.0,0.19]
[1732234259365,0.26476759,98350.0,98349.0,0.19]
[1732234259567,0.14368102,98350.0,98349.0,0.19]
[1732234260567,0.14168102,98350.0,98349.0,0.19]
[1732234260766,0.14368102,98350.0,98349.0,0.19]
[1732234261366,0.14368102,98350.0,98349.0,0.16944401]
[1732234261664,0.14268102,98350.0,98349.0,0.14614723]
[1732234261875,0.14368102,98350.0,98349.0,0.14614723]
[1732234262467,0.14368102,98350.0,98349.0,0.14114723]
[1732234262468,0.19809079,98350.0,98349.0,0.14114723]
[1732234262674,0.24439079,98350.0,98349.0,0.12132007]
[1732234263066,0.050784,98343.0,98342.0,0.0102]
[1732234263266,0.46097138,98343.0,98342.0,0.105]
[1732234263461,0.6427467,98343.0,98342.0,0.105]
[1732234263674,0.9477867,98343.0,98342.0,0.1]
[1732234263970,1.14234883,98343.0,98342.0,0.005]
[1732234264377,0.050792,98328.0,98324.0,0.0071]
[1732234264688,1.09156483,98343.0,98324.0,0.21]
[1732234264689,0.0906,98327.0,98324.0,0.21]
[1732234264977,0.0906,98326.0,98324.0,0.21]
[1732234265772,0.0906,98326.0,98324.0,0.214]
[1732234266680,0.14259365,98326.0,98324.0,0.214]
[1732234266975,0.19338565,98326.0,98324.0,0.214]
[1732234267673,0.19338565,98326.0,98324.0,0.22]
[1732234267873,0.19338565,98326.0,98324.0,0.216]
[1732234268372,0.1983635,98326.0,98324.0,0.216]
[1732234268574,0.5591635,98326.0,98324.0,0.216]
[1732234268979,0.70557809,98326.0,98324.0,0.15324101]
[1732234269280,0.38274245,98325.0,98324.0,0.13473113]
[1732234269578,0.050802,98308.0,98307.0,0.00310011]
[1732234269879,0.050802,98308.0,98307.0,0.14070011]
[1732234269880,2.23961545,98308.0,98307.0,0.14070011]
[1732234270075,2.10912368,98308.0,98307.0,0.14070011]
[1732234270373,2.30089817,98308.0,98291.0,0.0468]
[1732234270575,0.41161,98292.0,98291.0,0.19]
[1732234270780,0.50221,98292.0,98291.0,0.19]
[1732234271269,2.34377,98292.0,98291.0,0.14528759]
[1732234271465,2.348944,98292.0,98291.0,0.14528759]
[1732234271670,2.348944,98292.0,98286.0,5.378e-05]
[1732234271671,0.09907125,98289.0,98286.0,5.378e-05]
[1732234271872,2.649734,98292.0,98286.0,0.14005378]
[1732234271873,0.15101042,98291.0,98286.0,0.14005378]
[1732234272067,0.050812,98287.0,98286.0,0.14005378]
[1732234272373,0.141412,98287.0,98286.0,0.13505378]
[1732234272580,0.67178491,98287.0,98286.0,0.13505378]
[1732234272779,0.67697721,98287.0,98286.0,0.13505378]
[1732234272977,0.52612386,98287.0,98286.0,0.13505378]
[1732234273280,0.56519715,98287.0,98286.0,0.13105378]
[1732234273474,0.66417272,98287.0,98286.0,0.13105378]
[1732234273779,0.050816,98280.0,98279.0,0.42642394]
[1732234274083,0.42150285,98280.0,98279.0,0.63570394]
[1732234274580,0.42150285,98280.0,98279.0,0.63070394]
[1732234274973,0.42450285,98280.0,98279.0,0.63070394]
[1732234275179,1.92959149,98280.0,98279.0,0.63070394]
[1732234275479,1.92659149,98280.0,98279.0,0.63070394]
[1732234275783,2.02019149,98280.0,98279.0,0.63070394]
[1732234276579,2.07076435,98280.0,98279.0,0.63070394]
[1732234276877,2.07176435,98280.0,98279.0,0.63070394]
[1732234277086,2.08482721,98280.0,98279.0,0.63070394]
[1732234277382,2.08482092,98280.0,98279.0,0.63070394]
[1732234277681,0.60010093,98280.0,98279.0,0.63070394]
[1732234278780,0.59501229,98280.0,98279.0,0.62670394]
[1732234279177,0.60010973,98280.0,98279.0,0.62670394]
[1732234279577,0.75045368,98280.0,98279.0,0.62670394]
[1732234279773,0.50950973,98280.0,98279.0,0.62670394]
[1732234279979,0.50950973,98280.0,98279.0,0.21]
[1732234279980,2.04849373,98280.0,98279.0,0.21]
[1732234280176,2.39021373,98280.0,98279.0,0.21]
[1732234280479,2.44347604,98280.0,98279.0,0.21]
[1732234280674,1.95869373,98280.0,98279.0,0.21]
[1732234280882,2.39021373,98280.0,98279.0,0.21]
[1732234281180,2.44404606,98280.0,98279.0,0.21]
[1732234281386,2.35424606,98280.0,98279.0,0.21]
[1732234281579,2.39078397,98280.0,98279.0,0.21]
[1732234282083,1.94294427,98280.0,98279.0,0.21]
[1732234282285,2.43043813,98280.0,98279.0,0.21]
[1732234282478,2.37746427,98280.0,98279.0,0.21]
[1732234282795,0.87746427,98280.0,98279.0,0.21]
[1732234283191,0.8902894,98280.0,98279.0,0.21]
[1732234284274,0.8902894,98280.0,98265.0,0.3608]
[1732234284480,0.050823,98266.0,98265.0,0.5508]
[1732234284684,0.140623,98266.0,98265.0,0.5508]
[1732234284989,0.0898,98266.0,98265.0,0.5508]
[1732234285980,0.12024399,98269.0,98265.0,0.5508]
[1732234286289,0.0999689,98268.0,98265.0,0.5528]
[1732234286484,0.0898,98268.0,98265.0,0.5528]
[1732234286681,0.01018338,98267.0,98265.0,0.5528]
[1732234286880,0.0898,98268.0,98265.0,0.5528]
[1732234287080,0.0101838,98267.0,98265.0,0.5528]
[1732234287389,0.01018706,98266.0,98265.0,0.5548]
[1732234287586,0.21004399,98268.0,98265.0,0.5548]
[1732234288185,0.21004399,98268.0,98265.0,0.5518]
[1732234288384,0.12024399,98267.0,98265.0,0.5518]
[1732234288586,0.12024399,98266.0,98265.0,0.5518]
[1732234288794,0.0898,98268.0,98265.0,0.5518]
[1732234289087,0.050823,98267.0,98265.0,0.5518]
[1732234289588,0.01015385,98266.0,98265.0,0.5528]
[1732234289982,0.01015385,98266.0,98265.0,0.5478]
[1732234290587,0.01015385,98266.0,98265.0,0.5468]
[1732234290588,0.0050461,98266.0,98265.0,0.5468]
[1732234290792,0.01023437,98266.0,98265.0,0.5488]
[1732234291087,0.01531865,98266.0,98265.0,0.5478]
[1732234291291,0.02394038,98266.0,98265.0,0.5488]
[1732234291490,0.0290302,98266.0,98265.0,0.5488]
[1732234291683,0.0290302,98266.0,98265.0,0.5478]
[1732234291881,0.0290302,98266.0,98265.0,0.5498]
[1732234292190,0.20262603,98266.0,98265.0,0.5498]
[1732234292400,0.41312285,98266.0,98265.0,0.194]
[1732234292687,0.41344718,98266.0,98265.0,0.194]
[1732234292884,0.45877799,98266.0,98265.0,0.189]
[1732234293195,0.50960099,98266.0,98265.0,0.05]
[1732234293489,0.50960099,98266.0,98232.0,0.416741]
[1732234293490,0.050834,98246.0,98245.0,0.3268]
[1732234293786,2.05416709,98246.0,98245.0,0.19]
[1732234294085,2.5467685,98246.0,98245.0,0.19]
[1732234294481,2.44539866,98246.0,98245.0,0.19]
[1732234294681,2.44539866,98246.0,98245.0,0.193]
[1732234295287,2.44004359,98246.0,98245.0,0.1759914]
[1732234295585,2.35024359,98246.0,98245.0,0.13661183]
[1732234295787,2.44004359,98246.0,98245.0,0.13661183]
[1732234296092,2.43904359,98246.0,98245.0,0.13561183]
[1732234296593,2.43904359,98246.0,98245.0,0.13461183]
[1732234296594,2.62000529,98246.0,98245.0,0.13461183]
[1732234297393,2.62000529,98246.0,98245.0,0.005]
[1732234297394,2.58890728,98246.0,98245.0,0.005]
[1732234297592,2.58890728,98246.0,98227.0,0.046]
[1732234297593,0.050843,98228.0,98227.0,0.03700001]
[1732234297897,0.5917135,98228.0,98227.0,0.24700001]
[1732234298187,2.0917135,98228.0,98227.0,0.21]
[1732234298579,2.52747509,98228.0,98207.0,0.3194]
[1732234298798,0.772453,98208.0,98207.0,0.05]
[1732234298981,0.9525235,98208.0,98207.0,0.05]
[1732234299583,0.8118705,98208.0,98207.0,0.05]
[1732234299906,2.38487458,98208.0,98207.0,0.05]
[1732234300194,2.29507458,98208.0,98207.0,0.05]
[1732234300398,2.5660984,98208.0,98207.0,0.05]
[1732234300601,2.5680984,98208.0,98207.0,0.05]
[1732234300802,2.62002276,98208.0,98207.0,0.05]
[1732234300982,2.59680908,98208.0,98207.0,0.05]
[1732234301183,2.61391694,98208.0,98207.0,0.05]
[1732234301483,2.44301971,98208.0,98207.0,0.05]
[1732234302284,2.62388418,98208.0,98207.0,0.05]
[1732234302595,2.44286379,98208.0,98207.0,0.05]
[1732234302793,2.62388418,98208.0,98207.0,0.05]
[1732234303099,2.44286379,98208.0,98207.0,0.05]
[1732234303484,2.62381755,98208.0,98207.0,0.05]
[1732234304089,2.35302379,98208.0,98207.0,0.05]
[1732234304400,2.43886379,98208.0,98207.0,0.18]
[1732234304697,2.49371679,98208.0,98207.0,0.18]
[1732234305486,2.49290934,98208.0,98207.0,0.18]
[1732234306087,2.40106934,98208.0,98207.0,0.18]
[1732234306393,2.51325744,98208.0,98207.0,0.18]
[1732234306593,2.69400037,98208.0,98207.0,0.18]
[1732234307199,2.69000037,98208.0,98207.0,0.18]
[1732234307400,0.050857,98201.0,98189.0,0.0443]
[1732234307593,0.3608,98190.0,98189.0,0.2543]
[1732234307790,0.4506,98190.0,98189.0,0.2543]
[1732234307986,0.3608,98190.0,98189.0,0.2543]
[1732234308197,0.3608,98190.0,98189.0,0.2743]
[1732234308198,0.4506,98190.0,98189.0,0.2743]
[1732234308800,0.2901,98190.0,98189.0,0.87982]
[1732234308990,0.09034635,98194.0,98193.0,0.050861]
[1732234309192,0.3608,98207.0,98194.0,0.34992]
[1732234309193,0.12051836,98205.0,98194.0,0.34992]
[1732234309393,0.002,98201.0,98194.0,0.2744]
[1732234309797,0.002,98201.0,98195.0,0.30552]
[1732234310099,0.0898,98204.0,98195.0,0.50552]
[1732234310304,0.0898,98204.0,98195.0,0.2]
[1732234310492,0.0898,98204.0,98195.0,0.25086]
[1732234310800,1.57279247,98208.0,98198.0,0.050859]
[1732234310801,0.001,98201.0,98198.0,0.050859]
[1732234311005,1.59032001,98208.0,98198.0,0.19]
[1732234311190,1.5,98208.0,98206.0,0.050854]
[1732234311391,1.5,98208.0,98207.0,0.30548]
[1732234311592,1.5,98208.0,98207.0,0.53548]
[1732234311787,1.5,98208.0,98207.0,0.83548]
[1732234313090,1.550853,98208.0,98207.0,0.83548]
[1732234313293,1.551853,98208.0,98207.0,0.54048]
[1732234313689,1.552853,98208.0,98207.0,0.54048]
[1732234314089,1.551853,98208.0,98207.0,0.53548]
[1732234314289,1.556853,98208.0,98207.0,0.53548]
[1732234314503,1.506,98208.0,98207.0,0.53548]
[1732234314696,1.506,98208.0,98207.0,0.586334]
[1732234314893,1.553853,98208.0,98207.0,0.53548]
[1732234315202,1.503,98208.0,98207.0,0.83548]
[1732234315400,1.502,98208.0,98207.0,0.53548]
[1732234315606,0.001,98208.0,98207.0,0.53948]
[1732234316500,0.003,98208.0,98207.0,0.23]
[1732234316996,0.006,98208.0,98207.0,0.23]
[1732234317201,0.004,98208.0,98207.0,0.234]
[1732234317395,0.004,98208.0,98207.0,0.5948]
[1732234317591,1.55137301,98209.0,98207.0,0.90028]
[1732234317796,1.55137301,98209.0,98207.0,0.5948]
[1732234318301,1.550853,98209.0,98207.0,0.5948]
[1732234319005,1.550853,98209.0,98208.0,0.30548]
[1732234319204,1.550853,98209.0,98208.0,0.49548]
[1732234319504,1.5,98209.0,98208.0,0.50548]
[1732234320898,1.5,98209.0,98208.0,0.5608]
[1732234321494,1.504,98209.0,98208.0,0.5608]
[1732234321903,1.504,98209.0,98208.0,0.204]
[1732234322099,1.504,98209.0,98208.0,0.194]
[1732234322302,1.51021862,98209.0,98208.0,0.194]
[1732234322500,1.51021862,98209.0,98208.0,0.29]
[1732234322801,1.51021862,98209.0,98208.0,0.291]
[1732234322802,1.51021908,98209.0,98208.0,0.291]
[1732234324402,1.5,98209.0,98208.0,0.191]
[1732234324600,1.59994497,98209.0,98208.0,0.191]
[1732234324898,1.5938,98209.0,98208.0,0.19]
[1732234325199,1.5938,98209.0,98208.0,0.193]
[1732234325704,1.59993055,98209.0,98208.0,0.1223]
[1732234325899,0.050854,98208.0,98189.0,0.0024]
[1732234326203,0.12117267,98198.0,98189.0,0.2]
[1732234326407,0.050862,98192.0,98189.0,0.2]
[1732234326598,1.5,98191.0,98189.0,0.2]
[1732234327104,0.0898,98190.0,98189.0,0.2]
[1732234328700,0.09998806,98190.0,98189.0,0.2]
[1732234328900,0.0898,98190.0,98189.0,0.2]
[1732234329820,0.0938,98190.0,98189.0,0.2]
[1732234330107,0.09308709,98190.0,98189.0,0.2]
[1732234330295,0.14395009,98190.0,98189.0,0.2]
[1732234331797,0.13995009,98190.0,98189.0,0.2]
[1732234332005,0.50075009,98190.0,98189.0,0.201]
[1732234332411,0.51190827,98190.0,98189.0,0.201]
[1732234332612,0.51190827,98190.0,98189.0,0.2]
[1732234333003,0.51290827,98190.0,98189.0,0.2]
[1732234333417,0.46299087,98190.0,98189.0,0.02]
[1732234333814,0.51385387,98190.0,98189.0,0.02]
[1732234335213,0.63492802,98190.0,98189.0,0.02]
[1732234336113,0.52410129,98190.0,98189.0,0.02]
[1732234336316,0.64517544,98190.0,98189.0,0.02]
[1732234336515,0.52410129,98190.0,98189.0,0.02]
[1732234336720,0.64515255,98190.0,98189.0,0.02]
[1732234337507,0.52410129,98190.0,98189.0,0.02]
[1732234339712,0.47323829,98190.0,98175.0,0.0024]
[1732234339912,0.3608,98182.0,98175.0,0.16]
[1732234340121,0.0453,98181.0,98175.0,0.16]
[1732234340329,0.05049464,98181.0,98175.0,0.16]
[1732234340620,1.550868,98180.0,98175.0,0.16]
[1732234341211,0.0451,98179.0,98176.0,0.00355253]
[1732234341411,0.09076,98178.0,98177.0,0.00355253]
[1732234341612,0.09076,98178.0,98177.0,0.21355253]
[1732234342014,1.5,98178.0,98177.0,0.21355253]
[1732234342411,1.64198614,98178.0,98177.0,0.21355253]
[1732234342823,1.64198614,98178.0,98177.0,0.2193594]
[1732234343217,0.14198614,98178.0,98177.0,0.2193594]
[1732234343524,0.14198614,98178.0,98177.0,0.21]
[1732234343920,0.14298614,98178.0,98177.0,0.211]
[1732234344428,0.05222614,98178.0,98177.0,0.211]
[1732234344819,0.14298614,98178.0,98177.0,0.2304355]
[1732234345018,0.14298614,98178.0,98177.0,0.2738355]
[1732234347721,0.14298614,98178.0,98177.0,0.2304355]
[1732234348024,0.14298614,98178.0,98177.0,0.23060847]
[1732234349125,0.14298614,98178.0,98177.0,0.22060847]
[1732234349427,0.14298614,98178.0,98177.0,0.211]
[1732234349814,0.18918614,98178.0,98177.0,0.211]
[1732234350520,0.18918614,98178.0,98177.0,0.22045614]
[1732234351223,1.68918614,98178.0,98177.0,0.22045614]
[1732234351619,0.05087,98177.0,98160.0,0.24055868]
[1732234351819,0.09907125,98170.0,98160.0,0.44055868]
[1732234352129,0.0463,98169.0,98160.0,0.20006088]
[1732234352331,0.0908,98169.0,98160.0,0.20006088]
[1732234353642,0.09076,98168.0,98160.0,0.20006088]
[1732234354533,0.09076,98168.0,98160.0,0.18006088]
[1732234354534,0.141634,98168.0,98160.0,0.18006088]
[1732234354916,0.052874,98168.0,98160.0,0.18006088]
[1732234355231,0.09076,98167.0,98161.0,0.00318065]
[1732234355416,0.05355843,98168.0,98166.0,0.050875]
[1732234355619,0.05355843,98168.0,98167.0,0.045]
[1732234355820,0.05355843,98168.0,98167.0,0.24818065]
[1732234356122,0.0102,98180.0,98168.0,0.050874]
[1732234356325,0.09076,98179.0,98171.0,0.050872]
[1732234356629,0.09076,98179.0,98172.0,0.01096916]
[1732234356828,0.09076,98178.0,98177.0,0.3608]
[1732234357135,0.09076,98184.0,98180.0,0.050868]
[1732234357424,0.09076,98184.0,98180.0,0.28183716]
[1732234357924,0.09076,98186.0,98180.0,0.28183716]
[1732234358125,0.09076,98186.0,98180.0,0.71739716]
[1732234358330,0.0102,98194.0,98193.0,0.050861]
[1732234358518,0.09076,98195.0,98194.0,0.050861]
[1732234358722,0.09076,98195.0,98194.0,0.27183016]
[1732234359318,0.09076,98195.0,98194.0,0.22096916]
[1732234359319,0.14162,98195.0,98194.0,0.22096916]
[1732234360621,0.14562,98195.0,98194.0,0.22096916]
[1732234360821,0.09476,98195.0,98194.0,0.22096916]
[1732234361027,0.09676,98195.0,98194.0,0.22096916]
[1732234361437,0.14762,98195.0,98194.0,0.22096916]
[1732234361729,0.14762,98195.0,98194.0,0.22710976]
[1732234362231,0.006,98195.0,98194.0,0.22710976]
[1732234363339,0.0738684,98196.0,98194.0,0.23219678]
[1732234363531,0.050852,98210.0,98196.0,0.050859]
[1732234363833,0.050852,98210.0,98197.0,0.02607197]
[1732234363834,0.09076,98208.0,98197.0,0.02607197]
[1732234364035,0.41203027,98209.0,98198.0,0.12514322]
[1732234364239,0.09076,98213.0,98208.0,0.3608]
[1732234364533,0.09076,98213.0,98209.0,0.07157197]
[1732234364728,0.10282832,98218.0,98210.0,0.02607197]
[1732234364729,0.09076,98217.0,98210.0,0.02607197]
[1732234364921,0.141609,98217.0,98211.0,0.38687197]
[1732234365134,0.0102,98228.0,98219.0,0.050848]
[1732234365342,0.15064795,98245.0,98219.0,0.050848]
[1732234365343,0.0102,98235.0,98219.0,0.58687197]
[1732234365534,0.09076,98241.0,98234.0,0.18638441]
[1732234365725,0.09076,98241.0,98237.0,0.00398754]
[1732234365925,0.050835,98244.0,98240.0,0.18239049]
[1732234366133,0.050835,98244.0,98243.0,0.0039875]
[1732234366327,0.050835,98244.0,98243.0,0.21098495]
[1732234366535,0.050835,98244.0,98243.0,0.20319644]
[1732234366737,0.16167178,98247.0,98243.0,0.20319644]
[1732234367039,0.16167178,98247.0,98244.0,0.01319644]
[1732234367229,0.14133157,98247.0,98245.0,0.01331519]
[1732234367429,0.14133157,98247.0,98246.0,0.01319644]
[1732234367629,0.14133157,98247.0,98246.0,0.21319644]
[1732234368637,0.44669157,98247.0,98246.0,0.14069644]
[1732234368824,0.050835,98244.0,98243.0,0.005]
[1732234369020,0.050835,98244.0,98223.0,0.27]
[1732234369021,0.501355,98244.0,98223.0,0.27]
[1732234369226,0.411645,98224.0,98223.0,0.14]
[1732234369430,0.501365,98224.0,98223.0,0.14]
[1732234369921,0.501365,98224.0,98223.0,0.14012072]
[1732234370733,0.503365,98224.0,98223.0,0.14012072]
[1732234371327,0.505365,98224.0,98223.0,0.14012072]
[1732234371533,0.51244192,98224.0,98223.0,0.14012072]
[1732234371730,0.81788192,98224.0,98223.0,0.14012072]
[1732234372932,2.31788192,98224.0,98223.0,0.14012072]
[1732234373733,2.31588192,98224.0,98223.0,0.14012072]
[1732234374039,2.00749727,98224.0,98223.0,0.14012072]
[1732234374237,0.50749727,98224.0,98223.0,0.14012072]
[1732234375334,0.50349727,98224.0,98223.0,0.14012072]
[1732234375530,0.50749727,98224.0,98223.0,0.14012072]
[1732234375735,0.52783936,98224.0,98223.0,0.14012072]
[1732234376640,0.52783936,98224.0,98223.0,0.19096672]
[1732234376641,0.006,98224.0,98223.0,0.19096672]
[1732234376945,0.08972,98234.0,98231.0,0.050841]
[1732234377134,0.08972,98234.0,98232.0,0.144041]
[1732234377330,0.08972,98234.0,98232.0,0.324041]
[1732234377741,0.08972,98237.0,98235.0,0.050839]
[1732234377941,0.08972,98237.0,98235.0,0.270839]
[1732234378234,0.00152744,98244.0,98235.0,0.39]
[1732234378428,0.00152744,98244.0,98242.0,0.050836]
[1732234378642,0.00152744,98244.0,98242.0,0.250836]
[1732234379445,0.00152744,98244.0,98242.0,0.2]
[1732234380241,0.050834,98246.0,98242.0,0.2]
[1732234380540,0.08972,98248.0,98242.0,0.2]
[1732234380541,0.001,98244.0,98242.0,0.2]
[1732234380754,0.050835,98243.0,98242.0,0.2]
[1732234381642,0.003,98246.0,98242.0,0.2]
[1732234381948,0.050834,98245.0,98242.0,0.2]
[1732234382632,0.050835,98244.0,98242.0,0.2]
[1732234383941,0.051835,98244.0,98242.0,0.2]
[1732234385340,0.08972,98243.0,98242.0,0.2]
[1732234388338,0.09172,98243.0,98242.0,0.2]
[1732234388546,0.09172,98243.0,98242.0,0.32]
[1732234388740,0.050831,98252.0,98242.0,0.32]
[1732234389045,0.48192339,98265.0,98249.0,0.3608]
[1732234389046,7.213e-05,98265.0,98249.0,0.3608]
[1732234389249,0.08972,98264.0,98257.0,0.3608]
[1732234389449,7.213e-05,98265.0,98262.0,0.050825]
[1732234389649,7.213e-05,98265.0,98264.0,0.050824]
[1732234389850,7.213e-05,98265.0,98264.0,0.761624]
[1732234390648,7.213e-05,98265.0,98264.0,1.066904]
[1732234390950,7.213e-05,98265.0,98264.0,1.148904]
[1732234391649,7.213e-05,98265.0,98264.0,1.150904]
[1732234392342,7.213e-05,98265.0,98264.0,1.450904]
[1732234392652,0.0102,98276.0,98271.0,0.05082]
[1732234392653,0.05082,98273.0,98271.0,0.05082]
[1732234392842,0.0071,98279.0,98271.0,0.05082]
[1732234392843,0.050814,98284.0,98281.0,0.050815]
[1732234393038,0.0102,98287.0,98286.0,0.050813]
[1732234393039,0.050813,98287.0,98286.0,0.050813]
[1732234393242,0.050813,98287.0,98286.0,0.2]
[1732234394157,0.053813,98287.0,98286.0,0.2]
[1732234395746,0.055813,98287.0,98286.0,0.2]
[1732234399651,0.005,98287.0,98286.0,0.2]
[1732234400153,0.003,98287.0,98286.0,0.2]
[1732234400352,0.08968,98288.0,98286.0,0.04752482]
[1732234400551,0.140492,98288.0,98286.0,0.04752482]
[1732234401056,0.001,98287.0,98286.0,0.04752482]
[1732234401553,0.08968,98288.0,98286.0,0.04752482]
[1732234401741,0.003,98288.0,98286.0,0.10833782]
[1732234401946,0.002,98287.0,98286.0,0.20833782]
[1732234402249,0.003,98287.0,98286.0,0.20833782]
[1732234402651,0.001,98287.0,98286.0,0.20833782]
[1732234403544,0.001,98287.0,98286.0,0.113]
[1732234403743,0.003,98288.0,98286.0,0.113]
[1732234404445,0.001,98287.0,98286.0,0.118]
[1732234405157,0.001,98287.0,98286.0,0.117]
[1732234405354,0.050809,98294.0,98286.0,0.112]
[1732234405652,0.08964,98296.0,98293.0,0.3608]
[1732234405653,0.140448,98296.0,98293.0,0.3608]
[1732234406750,0.08964,98296.0,98293.0,0.3608]
[1732234406957,0.050809,98295.0,98293.0,0.3608]
[1732234407553,0.08964,98296.0,98281.0,0.3608]
[1732234407554,0.01000353,98294.0,98283.0,0.050814]
[1732234407754,0.050811,98291.0,98283.0,0.01]
[1732234407959,0.08964,98296.0,98283.0,0.01]